[Event "Blitz tournament"]
[Site "Biel, Switzerland"]
[Date "2021.07.31"]
[Round "1.1"]
[White "Alekseenko, Kirill"]
[Black "Kamsky, Gata"]
[Result "1/2-1/2"]
[ECO "D00"]
[WhiteElo "2580"]
[BlackElo "2644"]
[PlyCount "43"]
[EventDate "2021.??.??"]
[EventType "blitz"]
[TimeControl "3+2"]

1. d4 {[%emt 0:00:00]} g6 {[%emt 0:00:00]} 2. Nc3 {[%emt 0:00:00]} d5 {[%emt 0:
00:00]} 3. Bf4 {[%emt 0:00:00]} Nf6 {[%emt 0:00:00]} 4. e3 {[%emt 0:00:00]} c6
{[%emt 0:00:00]} 5. Nf3 {[%emt 0:00:00]} Bg4 {[%emt 0:00:00]} 6. Be2 {[%emt 0:
00:00]} Bxf3 {[%emt 0:00:00]} 7. Bxf3 {[%emt 0:00:00]} Bg7 {[%emt 0:00:00]} 8.
Qd2 {[%emt 0:00:00]} Nbd7 {[%emt 0:00:00]} 9. O-O {[%emt 0:00:00]} O-O {
[%emt 0:00:00]} 10. Rad1 {[%emt 0:00:00]} Re8 {[%emt 0:00:00]} 11. e4 {[%emt 0:
00:00]} dxe4 {[%emt 0:00:00]} 12. Nxe4 {[%emt 0:00:00]} Nxe4 {[%emt 0:00:00]}
13. Bxe4 {[%emt 0:00:00]} e5 {[%emt 0:00:00]} 14. dxe5 {[%emt 0:00:00]} Nxe5 {
[%emt 0:00:00]} 15. Qb4 {[%emt 0:00:00]} Qb6 {[%emt 0:00:00]} 16. Qb3 {[%emt 0:
00:00]} Qxb3 {[%emt 0:00:00]} 17. axb3 {[%emt 0:00:00]} f5 {[%emt 0:00:00]} 18.
Bxe5 {[%emt 0:00:02]} Bxe5 {[%emt 0:00:00]} 19. Bf3 {[%emt 0:00:08]} Rad8 {
[%emt 0:00:00]} 20. c3 {[%emt 0:00:04]} Kf7 {[%emt 0:00:00]} 21. g3 {[%emt 0:
00:01]} Bf6 {[%emt 0:00:00]} 22. Rxd8 {[%emt 0:00:04]} 1/2-1/2

[Event "Blitz tournament"]
[Site "Biel, Switzerland"]
[Date "2021.07.31"]
[Round "1.4"]
[White "Keymer, Vincent"]
[Black "Nihal, Sarin"]
[Result "0-1"]
[ECO "A40"]
[WhiteElo "2474"]
[BlackElo "2658"]
[PlyCount "122"]
[EventDate "2021.??.??"]
[EventType "blitz"]
[TimeControl "3+2"]
[WhiteClock "0:00:06"]
[BlackClock "0:00:09"]

1. Nf3 {[%emt 0:00:00]} b6 {[%emt 0:00:00]} 2. d4 {[%emt 0:00:00]} Bb7 {
[%emt 0:00:00]} 3. c4 {[%emt 0:00:00]} e6 {[%emt 0:00:00]} 4. g3 {[%emt 0:00:
00]} Bb4+ {[%emt 0:00:00]} 5. Bd2 {[%emt 0:00:00]} Bxf3 {[%emt 0:00:00]} 6.
exf3 {[%emt 0:00:00]} Bxd2+ {[%emt 0:00:00]} 7. Qxd2 {[%emt 0:00:00]} Ne7 {
[%emt 0:00:00]} 8. Nc3 {[%emt 0:00:00]} c6 {[%emt 0:00:00]} 9. d5 {[%emt 0:00:
00]} cxd5 {[%emt 0:00:00]} 10. cxd5 {[%emt 0:00:00]} Nxd5 {[%emt 0:00:00]} 11.
Nxd5 {[%emt 0:00:00]} exd5 {[%emt 0:00:00]} 12. O-O-O {[%emt 0:00:00]} O-O {
[%emt 0:00:00]} 13. Qxd5 {[%emt 0:00:00]} Nc6 {[%emt 0:00:00]} 14. Kb1 {
[%emt 0:00:00]} Qf6 {[%emt 0:00:00]} 15. f4 {[%emt 0:00:00]} Rac8 {[%emt 0:00:
00]} 16. a3 {[%emt 0:00:00]} Na5 {[%emt 0:00:00]} 17. Bd3 {[%emt 0:00:00]} g6 {
[%emt 0:00:00]} 18. Rhe1 {[%emt 0:00:00]} Rfd8 {[%emt 0:00:00]} 19. Qe5 {
[%emt 0:00:07]} Kg7 {[%emt 0:00:00]} 20. h4 {[%emt 0:00:07]} Nc6 {[%emt 0:00:
00]} 21. Qxf6+ {[%emt 0:00:09]} Kxf6 {[%emt 0:00:00]} 22. Ba6 {[%emt 0:00:06]}
Rc7 {[%emt 0:00:00]} 23. Rd6+ {[%emt 0:00:00]} Kg7 {[%emt 0:00:00]} 24. Bb5 {
[%emt 0:00:01]} Na5 {[%emt 0:00:09]} 25. Rc1 {[%emt 0:00:07]} Rxc1+ {[%emt 0:
00:20]} 26. Kxc1 {[%emt 0:00:01]} Nb3+ {[%emt 0:00:00]} 27. Kd1 {[%emt 0:00:06]
} Nc5 {[%emt 0:00:02]} 28. Rd4 {[%emt 0:00:01]} d6 {[%emt 0:00:07]} 29. Bc4 {
[%emt 0:00:03]} Kf6 {[%emt 0:00:05]} 30. Bd5 {[%emt 0:00:04]} Rd7 {[%emt 0:00:
05]} 31. Rc4 {[%emt 0:00:03]} Nd3 {[%emt 0:00:03]} 32. Kd2 {[%emt 0:00:06]}
Nxf2 {[%emt 0:00:05]} 33. Bf3 {[%emt 0:00:04]} h5 {[%emt 0:00:01]} 34. Rc8 {
[%emt 0:00:05]} d5 {[%emt 0:00:05]} 35. Ke3 {[%emt 0:00:02]} Ng4+ {[%emt 0:00:
03]} 36. Kd4 {[%emt 0:00:01]} Nh6 {[%emt 0:00:05]} 37. Rc6+ {[%emt 0:00:02]}
Ke7 {[%emt 0:00:02]} 38. Ke3 {[%emt 0:00:04]} Nf5+ {[%emt 0:00:01]} 39. Kf2 {
[%emt 0:00:01]} Nd4 {[%emt 0:00:01]} 40. Rc3 {[%emt 0:00:01]} Nxf3 {[%emt 0:00:
01]} 41. Kxf3 {[%emt 0:00:02]} d4 {[%emt 0:00:01]} 42. Rd3 {[%emt 0:00:02]} Ke6
{[%emt 0:00:01]} 43. Ke2 {[%emt 0:00:03]} Kd5 {[%emt 0:00:02]} 44. Rd1 {
[%emt 0:00:03]} Re7+ {[%emt 0:00:01]} 45. Kd2 {[%emt 0:00:01]} Re3 {[%emt 0:00:
01]} 46. Rc1 {[%emt 0:00:01]} Rxg3 {[%emt 0:00:05]} 47. Rc7 {[%emt 0:00:00]} f5
{[%emt 0:00:02]} 48. Rxa7 {[%emt 0:00:03]} Ke4 {[%emt 0:00:00]} 49. Re7+ {
[%emt 0:00:02]} Kxf4 {[%emt 0:00:02]} 50. Re6 {[%emt 0:00:03]} Rg2+ {[%emt 0:
00:11]} 51. Kd3 {[%emt 0:00:00]} Rxb2 {[%emt 0:00:01]} 52. Rxg6 {[%emt 0:00:01]
} Rb3+ {[%emt 0:00:04]} 53. Kxd4 {[%emt 0:00:01]} Rxa3 {[%emt 0:00:02]} 54.
Rxb6 {[%emt 0:00:02]} Rh3 {[%emt 0:00:01]} 55. Rb1 {[%emt 0:00:06]} Rxh4 {
[%emt 0:00:02]} 56. Rf1+ {[%emt 0:00:04]} Kg3+ {[%emt 0:00:01]} 57. Ke3 {
[%emt 0:00:03]} Re4+ {[%emt 0:00:04]} 58. Kd3 {[%emt 0:00:02]} Re5 {[%emt 0:00:
01]} 59. Kd4 {[%emt 0:00:01]} Ra5 {[%emt 0:00:00]} 60. Ke3 {[%emt 0:00:02]} f4+
{[%emt 0:00:03]} 61. Ke4 {[%emt 0:00:01]} Ra4+ {[%emt 0:00:01]} 0-1

[Event "Blitz tournament"]
[Site "Biel, Switzerland"]
[Date "2021.07.31"]
[Round "2.1"]
[White "Kamsky, Gata"]
[Black "Nihal, Sarin"]
[Result "1/2-1/2"]
[ECO "B13"]
[WhiteElo "2644"]
[BlackElo "2658"]
[PlyCount "65"]
[EventDate "2021.??.??"]
[EventType "blitz"]
[TimeControl "3+2"]
[WhiteClock "0:00:12"]
[BlackClock "0:00:07"]

1. d4 {[%emt 0:00:00]} d5 {[%emt 0:00:00]} 2. Bf4 {[%emt 0:00:00]} c5 {[%emt 0:
00:00]} 3. e3 {[%emt 0:00:00]} Nc6 {[%emt 0:00:00]} 4. c3 {[%emt 0:00:00]} cxd4
{[%emt 0:00:00]} 5. exd4 {[%emt 0:00:00]} Bf5 {[%emt 0:00:00]} 6. Nd2 {[%emt 0:
00:00]} e6 {[%emt 0:00:00]} 7. Qb3 {[%emt 0:00:00]} Bd6 {[%emt 0:00:00]} 8.
Bxd6 {[%emt 0:00:00]} Qxd6 {[%emt 0:00:00]} 9. Ngf3 {[%emt 0:00:00]} Rb8 {
[%emt 0:00:00]} 10. Be2 {[%emt 0:00:00]} Nf6 {[%emt 0:00:00]} 11. O-O {[%emt 0:
00:00]} O-O {[%emt 0:00:00]} 12. a4 {[%emt 0:00:00]} Qc7 {[%emt 0:00:00]} 13.
Rfe1 {[%emt 0:00:00]} a6 {[%emt 0:00:00]} 14. Qa3 {[%emt 0:00:00]} Ne4 {
[%emt 0:00:00]} 15. Nxe4 {[%emt 0:00:00]} Bxe4 {[%emt 0:00:00]} 16. Nd2 {
[%emt 0:00:00]} Bg6 {[%emt 0:00:00]} 17. a5 {[%emt 0:00:00]} e5 {[%emt 0:00:00]
} 18. dxe5 {[%emt 0:00:00]} Nxe5 {[%emt 0:00:00]} 19. Nb3 {[%emt 0:00:00]} Rfe8
{[%emt 0:00:00]} 20. Qc5 {[%emt 0:00:00]} Qd7 {[%emt 0:00:00]} 21. Nd4 {
[%emt 0:00:00]} Rbc8 {[%emt 0:00:00]} 22. Qb6 {[%emt 0:00:00]} Bd3 {[%emt 0:00:
02]} 23. Bf3 {[%emt 0:00:11]} Nc4 {[%emt 0:00:26]} 24. Qb4 {[%emt 0:00:02]} Ne5
{[%emt 0:00:07]} 25. Re3 {[%emt 0:00:05]} Nc6 {[%emt 0:00:15]} 26. Rxe8+ {
[%emt 0:00:07]} Rxe8 {[%emt 0:00:01]} 27. Nxc6 {[%emt 0:00:04]} Qxc6 {[%emt 0:
00:01]} 28. h3 {[%emt 0:00:09]} h6 {[%emt 0:00:03]} 29. Rd1 {[%emt 0:00:06]}
Be4 {[%emt 0:00:01]} 30. Bxe4 {[%emt 0:00:11]} Rxe4 {[%emt 0:00:01]} 31. Qb6 {
[%emt 0:00:02]} Qxb6 {[%emt 0:00:09]} 32. axb6 {[%emt 0:00:03]} Re6 {[%emt 0:
00:00]} 33. Rxd5 {[%emt 0:00:02]} 1/2-1/2

[Event "Blitz tournament"]
[Site "Biel, Switzerland"]
[Date "2021.07.31"]
[Round "2.4"]
[White "Alekseenko, Kirill"]
[Black "Studer, Noël"]
[Result "1-0"]
[ECO "D00"]
[WhiteElo "2580"]
[BlackElo "2451"]
[PlyCount "61"]
[EventDate "2021.??.??"]
[EventType "blitz"]
[TimeControl "3+2"]
[WhiteClock "0:00:31"]
[BlackClock "0:00:08"]

1. d4 {[%emt 0:00:00]} Nf6 {[%emt 0:00:00]} 2. Nc3 {[%emt 0:00:00]} d5 {
[%emt 0:00:00]} 3. Bf4 {[%emt 0:00:00]} e6 {[%emt 0:00:00]} 4. Nb5 {[%emt 0:00:
00]} Na6 {[%emt 0:00:00]} 5. e3 {[%emt 0:00:00]} Be7 {[%emt 0:00:00]} 6. Nf3 {
[%emt 0:00:00]} O-O {[%emt 0:00:00]} 7. Be2 {[%emt 0:00:00]} c6 {[%emt 0:00:00]
} 8. Nc3 {[%emt 0:00:00]} c5 {[%emt 0:00:00]} 9. Nb5 {[%emt 0:00:00]} Bd7 {
[%emt 0:00:00]} 10. O-O {[%emt 0:00:00]} Qb6 {[%emt 0:00:00]} 11. a4 {[%emt 0:
00:00]} c4 {[%emt 0:00:00]} 12. Ne5 {[%emt 0:00:00]} Be8 {[%emt 0:00:00]} 13.
c3 {[%emt 0:00:00]} Bxb5 {[%emt 0:00:00]} 14. axb5 {[%emt 0:00:00]} Nc7 {
[%emt 0:00:00]} 15. Bg5 {[%emt 0:00:00]} Rfd8 {[%emt 0:00:00]} 16. Bh5 {
[%emt 0:00:00]} g6 {[%emt 0:00:00]} 17. Qf3 {[%emt 0:00:00]} Nce8 {[%emt 0:00:
00]} 18. Bg4 {[%emt 0:00:00]} Qxb5 {[%emt 0:00:00]} 19. h4 {[%emt 0:00:00]} Qb6
{[%emt 0:00:03]} 20. h5 {[%emt 0:00:00]} Qc7 {[%emt 0:00:00]} 21. hxg6 {
[%emt 0:00:00]} hxg6 {[%emt 0:00:03]} 22. g3 {[%emt 0:00:00]} Kg7 {[%emt 0:00:
23]} 23. Qf4 {[%emt 0:00:00]} Bd6 {[%emt 0:00:06]} 24. Kg2 {[%emt 0:00:00]}
Nxg4 {[%emt 0:00:07]} 25. Qxg4 {[%emt 0:00:01]} Nf6 {[%emt 0:00:10]} 26. Qh4 {
[%emt 0:00:20]} Nh5 {[%emt 0:00:02]} 27. Bxd8 {[%emt 0:00:05]} Rxd8 {[%emt 0:
00:01]} 28. g4 {[%emt 0:00:03]} Be7 {[%emt 0:00:03]} 29. Qh2 {[%emt 0:00:06]}
Nf6 {[%emt 0:00:02]} 30. Rh1 {[%emt 0:00:02]} Rg8 {[%emt 0:00:00]} 31. Qh6# {
[%emt 0:00:02]} 1-0

[Event "Blitz tournament"]
[Site "Biel, Switzerland"]
[Date "2021.07.31"]
[Round "3.1"]
[White "Studer, Noël"]
[Black "Kamsky, Gata"]
[Result "1-0"]
[ECO "D10"]
[WhiteElo "2451"]
[BlackElo "2644"]
[PlyCount "67"]
[EventDate "2021.??.??"]
[EventType "blitz"]
[TimeControl "3+2"]
[WhiteClock "0:00:06"]
[BlackClock "0:00:10"]

1. d4 {[%emt 0:00:00]} d5 {[%emt 0:00:00]} 2. c4 {[%emt 0:00:00]} c6 {[%emt 0:
00:00]} 3. cxd5 {[%emt 0:00:00]} cxd5 {[%emt 0:00:00]} 4. Bf4 {[%emt 0:00:00]}
e6 {[%emt 0:00:00]} 5. e3 {[%emt 0:00:00]} Bd6 {[%emt 0:00:00]} 6. Bxd6 {
[%emt 0:00:00]} Qxd6 {[%emt 0:00:00]} 7. Nc3 {[%emt 0:00:00]} Nc6 {[%emt 0:00:
00]} 8. Bd3 {[%emt 0:00:00]} Nge7 {[%emt 0:00:00]} 9. f4 {[%emt 0:00:00]} O-O {
[%emt 0:00:00]} 10. Nf3 {[%emt 0:00:00]} f6 {[%emt 0:00:00]} 11. O-O {[%emt 0:
00:00]} Bd7 {[%emt 0:00:00]} 12. Qe1 {[%emt 0:00:00]} Be8 {[%emt 0:00:00]} 13.
Qh4 {[%emt 0:00:00]} Bg6 {[%emt 0:00:00]} 14. Bxg6 {[%emt 0:00:00]} Nxg6 {
[%emt 0:00:00]} 15. Qh5 {[%emt 0:00:00]} Rac8 {[%emt 0:00:00]} 16. Rae1 {
[%emt 0:00:00]} Na5 {[%emt 0:00:00]} 17. f5 {[%emt 0:00:00]} exf5 {[%emt 0:00:
00]} 18. Qxf5 {[%emt 0:00:00]} Ne7 {[%emt 0:00:00]} 19. Qd3 {[%emt 0:00:00]}
Qd7 {[%emt 0:00:00]} 20. Nd2 {[%emt 0:00:00]} Nc4 {[%emt 0:00:00]} 21. Nxc4 {
[%emt 0:00:01]} dxc4 {[%emt 0:00:00]} 22. Qd2 {[%emt 0:00:09]} b5 {[%emt 0:00:
00]} 23. Ne4 {[%emt 0:00:14]} Qd5 {[%emt 0:00:00]} 24. Nc3 {[%emt 0:00:01]} Qd7
{[%emt 0:00:00]} 25. Ne4 {[%emt 0:00:01]} f5 {[%emt 0:00:00]} 26. Ng5 {[%emt 0:
00:01]} Nd5 {[%emt 0:00:00]} 27. Nf3 {[%emt 0:00:08]} b4 {[%emt 0:00:00]} 28.
Ne5 {[%emt 0:00:01]} Qd6 {[%emt 0:00:01]} 29. Qc2 {[%emt 0:00:02]} Qe6 {
[%emt 0:00:32]} 30. Qa4 {[%emt 0:00:11]} a6 {[%emt 0:00:05]} 31. Nd7 {[%emt 0:
00:07]} Rfe8 {[%emt 0:00:05]} 32. Nc5 {[%emt 0:00:01]} Qh6 {[%emt 0:00:14]} 33.
Rf3 {[%emt 0:00:07]} c3 {[%emt 0:00:07]} 34. Qb3 {[%emt 0:00:06]} 1-0

[Event "Blitz tournament"]
[Site "Biel, Switzerland"]
[Date "2021.07.31"]
[Round "3.2"]
[White "Lagarde, Maxime"]
[Black "Alekseenko, Kirill"]
[Result "1-0"]
[ECO "A21"]
[WhiteElo "2630"]
[BlackElo "2580"]
[PlyCount "131"]
[EventDate "2021.??.??"]
[EventType "blitz"]
[TimeControl "3+2"]
[WhiteClock "0:00:06"]
[BlackClock "0:00:07"]

1. c4 {[%emt 0:00:00]} e5 {[%emt 0:00:00]} 2. Nc3 {[%emt 0:00:00]} d6 {[%emt 0:
00:00]} 3. Nf3 {[%emt 0:00:00]} f5 {[%emt 0:00:00]} 4. d4 {[%emt 0:00:00]} e4 {
[%emt 0:00:00]} 5. Ng5 {[%emt 0:00:00]} Be7 {[%emt 0:00:00]} 6. h4 {[%emt 0:00:
00]} Nf6 {[%emt 0:00:00]} 7. Bf4 {[%emt 0:00:00]} c6 {[%emt 0:00:00]} 8. e3 {
[%emt 0:00:00]} Na6 {[%emt 0:00:00]} 9. Be2 {[%emt 0:00:00]} Nc7 {[%emt 0:00:
00]} 10. Bg3 {[%emt 0:00:00]} a6 {[%emt 0:00:00]} 11. Qb3 {[%emt 0:00:00]} O-O
{[%emt 0:00:00]} 12. c5+ {[%emt 0:00:00]} d5 {[%emt 0:00:00]} 13. Na4 {[%emt 0:
00:00]} h6 {[%emt 0:00:00]} 14. Nh3 {[%emt 0:00:00]} Be6 {[%emt 0:00:00]} 15.
Nb6 {[%emt 0:00:02]} Rb8 16. Nf4 {[%emt 0:00:00]} Bf7 {[%emt 0:00:00]} 17. h5 {
[%emt 0:00:00]} Nd7 {[%emt 0:00:00]} 18. a4 {[%emt 0:00:00]} Nxb6 {[%emt 0:00:
00]} 19. cxb6 {[%emt 0:00:00]} Ne8 {[%emt 0:00:00]} 20. Ng6 {[%emt 0:00:00]}
Bxg6 {[%emt 0:00:00]} 21. Bxb8 {[%emt 0:00:00]} Qxb8 {[%emt 0:00:00]} 22. hxg6
{[%emt 0:00:00]} a5 {[%emt 0:00:00]} 23. g3 {[%emt 0:00:00]} Bb4+ {[%emt 0:00:
03]} 24. Kf1 {[%emt 0:00:00]} Qd8 {[%emt 0:00:07]} 25. Kg1 {[%emt 0:00:11]} Nf6
{[%emt 0:00:03]} 26. Rh4 {[%emt 0:00:03]} Qxb6 {[%emt 0:00:01]} 27. Kg2 {
[%emt 0:00:03]} Qd8 {[%emt 0:00:02]} 28. Rah1 {[%emt 0:00:02]} Qe8 {[%emt 0:00:
01]} 29. Bh5 {[%emt 0:00:07]} b6 {[%emt 0:00:10]} 30. Qd1 {[%emt 0:00:02]} c5 {
[%emt 0:00:10]} 31. b3 {[%emt 0:00:01]} Qe6 {[%emt 0:00:08]} 32. dxc5 {[%emt 0:
00:07]} bxc5 {[%emt 0:00:01]} 33. Be2 {[%emt 0:00:01]} Rd8 {[%emt 0:00:02]} 34.
Qc2 {[%emt 0:00:08]} Kf8 {[%emt 0:00:02]} 35. Rd1 {[%emt 0:00:01]} Qe5 {
[%emt 0:00:01]} 36. Bb5 {[%emt 0:00:06]} Qe6 {[%emt 0:00:02]} 37. Qe2 {[%emt 0:
00:02]} Ng4 {[%emt 0:00:04]} 38. Ba6 {[%emt 0:00:10]} Rd6 {[%emt 0:00:03]} 39.
Bb7 {[%emt 0:00:03]} Ne5 {[%emt 0:00:12]} 40. Qb5 {[%emt 0:00:05]} Nxg6 {
[%emt 0:00:02]} 41. Rh5 {[%emt 0:00:01]} Ne7 {[%emt 0:00:01]} 42. Ba8 {[%emt 0:
00:06]} Kf7 {[%emt 0:00:01]} 43. Rhh1 {[%emt 0:00:01]} d4 {[%emt 0:00:02]} 44.
exd4 {[%emt 0:00:03]} cxd4 {[%emt 0:00:01]} 45. g4 {[%emt 0:00:04]} Qg6 {
[%emt 0:00:11]} 46. f3 {[%emt 0:00:05]} Kg8 {[%emt 0:00:03]} 47. Qc4+ {[%emt 0:
00:02]} Kh7 {[%emt 0:00:01]} 48. Rdf1 {[%emt 0:00:03]} d3 {[%emt 0:00:02]} 49.
Kh3 {[%emt 0:00:01]} fxg4+ {[%emt 0:00:02]} 50. fxg4 {[%emt 0:00:01]} Re6 {
[%emt 0:00:03]} 51. Rf4 {[%emt 0:00:03]} e3 {[%emt 0:00:03]} 52. Re4 {[%emt 0:
00:01]} Rf6 {[%emt 0:00:05]} 53. Rxe7 {[%emt 0:00:03]} Qg5 {[%emt 0:00:05]} 54.
Be4+ {[%emt 0:00:02]} Rg6 {[%emt 0:00:00]} 55. Qe6 {[%emt 0:00:03]} e2 {
[%emt 0:00:01]} 56. Bxg6+ {[%emt 0:00:01]} Qxg6 {[%emt 0:00:01]} 57. Qxg6+ Kxg6
{[%emt 0:00:01]} 58. Re3 {[%emt 0:00:05]} Kg5 {[%emt 0:00:04]} 59. Rxd3 {
[%emt 0:00:02]} e1=Q {[%emt 0:00:01]} 60. Rxe1 {[%emt 0:00:01]} Bxe1 {[%emt 0:
00:01]} 61. Rd5+ {[%emt 0:00:03]} Kf4 {[%emt 0:00:02]} 62. Rf5+ {[%emt 0:00:01]
} Ke4 {[%emt 0:00:01]} 63. Rf7 {[%emt 0:00:01]} Bc3 {[%emt 0:00:01]} 64. Rc7 {
[%emt 0:00:02]} Bd2 {[%emt 0:00:02]} 65. Kh4 {[%emt 0:00:03]} g6 {[%emt 0:00:
02]} 66. Rc6 {[%emt 0:00:02]} 1-0

[Event "Blitz tournament"]
[Site "Biel, Switzerland"]
[Date "2021.07.31"]
[Round "4.1"]
[White "Kamsky, Gata"]
[Black "Gelfand, Boris"]
[Result "1/2-1/2"]
[ECO "B20"]
[WhiteElo "2644"]
[BlackElo "2691"]
[PlyCount "75"]
[EventDate "2021.??.??"]
[EventType "blitz"]
[TimeControl "3+2"]
[WhiteClock "0:00:39"]
[BlackClock "0:00:25"]

1. e4 {[%emt 0:00:00]} c5 {[%emt 0:00:00]} 2. Nc3 {[%emt 0:00:00]} Nc6 {
[%emt 0:00:00]} 3. Bc4 {[%emt 0:00:00]} e6 {[%emt 0:00:00]} 4. a3 {[%emt 0:00:
00]} Nf6 {[%emt 0:00:00]} 5. d3 {[%emt 0:00:00]} d5 {[%emt 0:00:00]} 6. Bb5 {
[%emt 0:00:00]} Be7 {[%emt 0:00:00]} 7. Bxc6+ {[%emt 0:00:00]} bxc6 {[%emt 0:
00:00]} 8. Nf3 {[%emt 0:00:00]} O-O {[%emt 0:00:00]} 9. O-O {[%emt 0:00:00]}
Nd7 {[%emt 0:00:00]} 10. Ne2 {[%emt 0:00:00]} e5 {[%emt 0:00:00]} 11. Ng3 {
[%emt 0:00:00]} f6 {[%emt 0:00:00]} 12. c4 {[%emt 0:00:00]} Rf7 {[%emt 0:00:00]
} 13. Qa4 {[%emt 0:00:00]} Nb6 {[%emt 0:00:00]} 14. Qc2 {[%emt 0:00:00]} Bg4 {
[%emt 0:00:00]} 15. Nd2 {[%emt 0:00:00]} a5 {[%emt 0:00:00]} 16. Re1 {[%emt 0:
00:00]} Qc8 {[%emt 0:00:00]} 17. a4 {[%emt 0:00:00]} Be6 {[%emt 0:00:00]} 18.
b3 {[%emt 0:00:00]} Nd7 {[%emt 0:00:00]} 19. Ndf1 {[%emt 0:00:00]} d4 {[%emt 0:
00:00]} 20. f4 {[%emt 0:00:00]} exf4 {[%emt 0:00:00]} 21. Bxf4 {[%emt 0:00:00]}
g6 {[%emt 0:00:00]} 22. h3 {[%emt 0:00:00]} Qf8 {[%emt 0:00:00]} 23. Nh2 {
[%emt 0:00:00]} Bd6 {[%emt 0:00:00]} 24. Rf1 {[%emt 0:00:00]} Ne5 {[%emt 0:00:
00]} 25. Rf2 {[%emt 0:00:00]} Rb8 {[%emt 0:00:05]} 26. Raf1 {[%emt 0:00:00]}
Rfb7 {[%emt 0:00:08]} 27. Nf3 {[%emt 0:00:00]} Nxf3+ {[%emt 0:00:15]} 28. Rxf3
{[%emt 0:00:00]} Rxb3 {[%emt 0:00:01]} 29. e5 {[%emt 0:00:00]} Rb2 {[%emt 0:00:
05]} 30. Qc1 {[%emt 0:00:00]} fxe5 {[%emt 0:00:09]} 31. Bxe5 {[%emt 0:00:01]}
Qxf3 {[%emt 0:00:04]} 32. gxf3 {[%emt 0:00:02]} Bxe5 {[%emt 0:00:01]} 33. Qe1 {
[%emt 0:00:01]} Bxg3 {[%emt 0:00:05]} 34. Qxe6+ {[%emt 0:00:04]} Kg7 {[%emt 0:
00:01]} 35. Qe7+ {[%emt 0:00:06]} Kg8 {[%emt 0:00:02]} 36. Qe6+ {[%emt 0:00:04]
} Kg7 {[%emt 0:00:01]} 37. Qe7+ {[%emt 0:00:22]} Kg8 {[%emt 0:00:00]} 38. Qe6+
{[%emt 0:00:05]} 1/2-1/2

[Event "Blitz tournament"]
[Site "Biel, Switzerland"]
[Date "2021.07.31"]
[Round "4.3"]
[White "Alekseenko, Kirill"]
[Black "Keymer, Vincent"]
[Result "1-0"]
[ECO "B10"]
[WhiteElo "2580"]
[BlackElo "2474"]
[PlyCount "86"]
[EventDate "2021.??.??"]
[EventType "blitz"]
[TimeControl "3+2"]
[WhiteClock "0:00:05"]
[BlackClock "0:00:04"]

1. e4 {[%emt 0:00:00]} c6 {[%emt 0:00:00]} 2. Nf3 {[%emt 0:00:00]} d5 {[%emt 0:
00:00]} 3. d3 {[%emt 0:00:00]} dxe4 {[%emt 0:00:00]} 4. dxe4 {[%emt 0:00:00]}
Qxd1+ {[%emt 0:00:00]} 5. Kxd1 {[%emt 0:00:00]} Nd7 {[%emt 0:00:00]} 6. Ne1 {
[%emt 0:00:00]} e5 {[%emt 0:00:00]} 7. Bc4 {[%emt 0:00:00]} f5 {[%emt 0:00:00]}
8. exf5 {[%emt 0:00:00]} Nc5 {[%emt 0:00:00]} 9. Nd3 {[%emt 0:00:00]} e4 {
[%emt 0:00:00]} 10. Nxc5 {[%emt 0:00:00]} Bxc5 {[%emt 0:00:00]} 11. Be3 {
[%emt 0:00:00]} Bxe3 {[%emt 0:00:00]} 12. fxe3 {[%emt 0:00:00]} Bxf5 {[%emt 0:
00:00]} 13. h3 {[%emt 0:00:00]} Nf6 {[%emt 0:00:00]} 14. g4 {[%emt 0:00:00]}
Bg6 {[%emt 0:00:00]} 15. Ke2 {[%emt 0:00:00]} h5 {[%emt 0:00:00]} 16. g5 {
[%emt 0:00:00]} Nd7 {[%emt 0:00:00]} 17. Nd2 {[%emt 0:00:02]} Ne5 {[%emt 0:00:
00]} 18. Raf1 {[%emt 0:00:02]} Rd8 {[%emt 0:00:00]} 19. Bb3 {[%emt 0:00:01]} h4
{[%emt 0:00:08]} 20. Rh2 {[%emt 0:00:29]} Ke7 {[%emt 0:00:13]} 21. Rf4 {
[%emt 0:00:03]} Rxd2+ {[%emt 0:00:03]} 22. Kxd2 {[%emt 0:00:01]} Nf3+ {[%emt 0:
00:01]} 23. Rxf3 {[%emt 0:00:02]} exf3 {[%emt 0:00:01]} 24. e4 {[%emt 0:00:03]}
Rd8+ {[%emt 0:00:18]} 25. Ke3 {[%emt 0:00:02]} Bh5 {[%emt 0:00:01]} 26. c3 {
[%emt 0:00:02]} a5 {[%emt 0:00:04]} 27. a4 {[%emt 0:00:02]} b6 {[%emt 0:00:03]}
28. Rf2 {[%emt 0:00:02]} Rd7 {[%emt 0:00:03]} 29. Rf1 {[%emt 0:00:01]} b5 {
[%emt 0:00:05]} 30. axb5 {[%emt 0:00:04]} cxb5 {[%emt 0:00:01]} 31. Bd1 {
[%emt 0:00:01]} Bf7 {[%emt 0:00:04]} 32. Bxf3 {[%emt 0:00:04]} Be6 {[%emt 0:00:
01]} 33. Be2 {[%emt 0:00:01]} b4 {[%emt 0:00:04]} 34. cxb4 {[%emt 0:00:02]}
axb4 {[%emt 0:00:01]} 35. Rf4 {[%emt 0:00:01]} Bxh3 {[%emt 0:00:01]} 36. Rxh4 {
[%emt 0:00:01]} Be6 {[%emt 0:00:01]} 37. Rh8 {[%emt 0:00:06]} Rc7 {[%emt 0:00:
04]} 38. Rb8 {[%emt 0:00:03]} b3 {[%emt 0:00:01]} 39. Bd3 {[%emt 0:00:02]} Rc1
{[%emt 0:00:03]} 40. e5 {[%emt 0:00:07]} Rg1 {[%emt 0:00:04]} 41. g6 {[%emt 0:
00:01]} Bd5 {[%emt 0:00:01]} 42. Kd4 {[%emt 0:00:02]} Be6 {[%emt 0:00:03]} 43.
Rb7+ Kf8 1-0